fUSD/lending_fUSD_20250211
["ID","MTS","AMOUNT","RATE_DAILY","PERIOD"]
[352677978,1739232002587,5000.0,8.219e-05,2]
[352677979,1739232018590,6150.0,8.219e-05,2]
[352677980,1739232150902,150.0,0.00019793,120]
[352677981,1739232210720,150.0,0.00019396,120]
[352677982,1739232332028,150.0,0.00019266,120]
[352677983,1739232390722,150.0,0.00018992,120]
[352677984,1739232450747,150.0,0.00019775,120]
[352677985,1739232488441,-796.25,8.219e-05,2]
[352677986,1739232488464,-485.50082644,8.736e-05,2]
[352677987,1739232488486,-150.0,8.736e-05,2]
[352677988,1739232488509,-2850.5145476,8.775e-05,2]
[352677989,1739232488530,-150.0,8.775e-05,2]
[352678003,1739232636008,-511.5397,8.699e-05,2]
[352678004,1739232636019,-500.0,8.851e-05,2]
[352678005,1739232636029,-679.7125,8.851e-05,2]
[352678006,1739232636038,-150.0,8.912e-05,2]
[352678007,1739232636048,-1043.4028,8.973e-05,2]
[352678008,1739232636057,-5425.0693,8.973e-05,2]
[352678009,1739232636067,-154.59210098,8.973e-05,2]
[352678010,1739232636076,-150.0,9.142e-05,2]
[352678011,1739232636085,-154.59210098,9.437e-05,2]
[352678012,1739232636095,-201.56,9.476e-05,2]
[352678013,1739232636104,-232.23,9.526e-05,2]
[352678014,1739232636114,-200.0,9.592e-05,2]
[352678015,1739232636123,-51096.822068,9.7e-05,2]
[352678016,1739232636133,-250.0,9.719e-05,2]
[352678017,1739232636143,-150.0,9.736e-05,2]
[352678018,1739232636153,-154.59210098,9.901e-05,2]
[352678019,1739232636162,-250.0,9.901e-05,2]
[352678020,1739232636172,-1980.0,9.942e-05,2]
[352678021,1739232636181,-1000.0,0.00010007,2]
[352678022,1739232636190,-290.97,0.00010137,2]
[352678023,1739232636199,-1549.38,0.00010441,2]
[352678024,1739232636209,-635.37,0.00010441,2]
[352678025,1739232636218,-796.25,0.00010446,2]
[352678026,1739232636227,-201.56,0.0001066,2]
[352678027,1739232636238,-1000.0,0.000108,2]
[352678028,1739232636247,-1000.0,0.000108,2]
[352678029,1739232636257,-1000.0,0.000108,2]
[352678030,1739232636267,-1783.0,0.000108,2]
[352678031,1739232636276,-44542.07240503,0.00010835,2]
[352678032,1739232636286,-985.61,0.00010848,2]
[352678033,1739232636295,-438.71,0.00010848,2]
[352678034,1739232636305,-150.0,0.00010848,2]
[352678035,1739232636314,-985.61,0.00010848,2]
[352678036,1739232636324,-985.61,0.00010848,2]
[352678037,1739232636333,-500.0,0.00010877,2]
[352678038,1739232636343,-318.47998608,0.000109,2]
[352678039,1739232636352,-169.55809943,0.000109,2]
[352678040,1739232636361,-471.1091767,0.000109,2]
[352678041,1739232636371,-461.22246496,0.000109,2]
[352678042,1739232636380,-207.56776489,0.000109,2]
[352678044,1739232636390,-507.07884636,0.00010957,2]
[352678046,1739232636399,-500.0,0.00010958,2]
[352678047,1739232636410,-500.0,0.00010958,2]
[352678048,1739232636419,-500.0,0.00010958,2]
[352678049,1739232636429,-500.0,0.00010958,2]
[352678050,1739232636439,-632.74,0.00010958,2]
[352678051,1739232636448,-500.0,0.00010958,2]
[352678052,1739232636457,-500.0,0.00010958,2]
[352678053,1739232636467,-546.96,0.00010958,2]
[352678054,1739232636476,-570.32,0.00010958,2]
[352678055,1739232636485,-500.0,0.00010958,2]
[352678056,1739232636497,-500.0,0.00010958,2]
[352678057,1739232636506,-500.0,0.00010958,2]
[352678058,1739232636515,-500.0,0.00010958,2]
[352678059,1739232636525,-500.0,0.00010958,2]
[352678060,1739232636535,-500.0,0.00010958,2]
[352678061,1739232636544,-704.25,0.00010958,2]
[352678062,1739232636554,-361.41690211,0.00010958,2]
[352678064,1739232636564,-500.0,0.00010958,2]
[352678066,1739232636573,-500.0,0.00010958,2]
[352678068,1739232636582,-435.17961463,0.00010958,2]
[352678070,1739232636591,-500.0,0.00010958,2]
[352678072,1739232636600,-500.0,0.00010958,2]
[352678073,1739232636609,-540.4,0.00010958,2]
[352678075,1739232636618,-500.0,0.00010958,2]
[352678076,1739232636627,-516.46,0.00010958,2]
[352678077,1739232636636,-564.61,0.00010958,2]
[352678078,1739232636645,-178.14,0.00010958,2]
[352678079,1739232636655,-1070.24,0.00010958,2]
[352678080,1739232636664,-373.0605979,0.00010958,2]
[352678081,1739232636673,-500.0,0.00010958,2]
[352678082,1739232636682,-500.0,0.00010958,2]
[352678083,1739232636691,-1143.82,0.00010958,2]
[352678084,1739232636701,-547.6,0.00010958,2]
[352678085,1739232636711,-397.53820449,0.00010958,2]
[352678086,1739232636721,-500.0,0.00010958,2]
[352678087,1739232636731,-500.0,0.00010958,2]
[352678088,1739232636741,-500.0,0.00010958,2]
[352678089,1739232636750,-500.0,0.00010958,2]
[352678090,1739232636760,-500.0,0.00010958,2]
[352678091,1739232636771,-500.0,0.00010958,2]
[352678092,1739232636780,-500.0,0.00010958,2]
[352678093,1739232636789,-500.0,0.00010958,2]
[352678094,1739232636801,-500.0,0.00010958,2]
[352678095,1739232636810,-1144.53,0.00010958,2]
[352678096,1739232636820,-500.0,0.00010958,2]
[352678097,1739232636830,-500.0,0.00010958,2]
[352678098,1739232636839,-500.0,0.00010958,2]
[352678099,1739232636848,-500.0,0.00010958,2]
[352678100,1739232636858,-500.0,0.00010958,2]
[352678101,1739232636867,-1057.35,0.00010958,2]
[352678102,1739232636876,-500.0,0.00010958,2]
[352678103,1739232636886,-537.8,0.00010958,2]
[352678104,1739232636895,-500.0,0.00010958,2]
[352678105,1739232636905,-500.0,0.00010958,2]
[352678106,1739232636914,-500.0,0.00010958,2]
[352678107,1739232636923,-500.0,0.00010958,2]
[352678108,1739232636932,-500.0,0.00010958,2]
[352678109,1739232636942,-525.6721037,0.00010958,2]
[352678110,1739232636951,-500.0,0.00010958,2]
[352678111,1739232636960,-844.04,0.00010958,2]
[352678112,1739232636969,-500.0,0.00010958,2]
[352678113,1739232636978,-520.43,0.00010958,2]
[352678114,1739232636989,-500.0,0.00010958,2]
[352678115,1739232636999,-1192.94,0.00010958,2]
[352678116,1739232637008,-500.0,0.00010958,2]
[352678117,1739232637018,-500.0,0.00010958,2]
[352678118,1739232637028,-576.08,0.00010958,2]
[352678119,1739232637038,-500.0,0.00010958,2]
[352678120,1739232637048,-500.0,0.00010958,2]
[352678121,1739232637056,-500.0,0.00010958,2]
[352678122,1739232637066,-500.0,0.00010958,2]
[352678123,1739232637075,-500.0,0.00010958,2]
[352678124,1739232637084,-974.33,0.00010958,2]
[352678125,1739232637093,-500.0,0.00010958,2]
[352678126,1739232637103,-500.0,0.00010958,2]
[352678127,1739232637112,-500.0,0.00010958,2]
[352678128,1739232637123,-417.50100134,0.00010958,2]
[352678129,1739232637132,-500.0,0.00010958,2]
[352678130,1739232637141,-500.0,0.00010958,2]
[352678131,1739232637150,-500.0,0.00010958,2]
[352678132,1739232637160,-500.0,0.00010958,2]
[352678133,1739232637169,-746.41,0.00010958,2]
[352678134,1739232637179,-500.0,0.00010958,2]
[352678135,1739232637188,-500.0,0.00010958,2]
[352678136,1739232637199,-983.23,0.00010958,2]
[352678137,1739232637208,-201.96,0.00010958,2]
[352678138,1739232637218,-883.23,0.00010958,2]
[352678139,1739232637227,-500.32308946,0.00010958,2]
[352678140,1739232637237,-500.0,0.00010958,2]
[352678141,1739232637248,-566.11,0.00010958,2]
[352678142,1739232637257,-500.0,0.00010958,2]
[352678143,1739232637268,-500.0,0.00010958,2]
[352678144,1739232637277,-500.0,0.00010958,2]
[352678145,1739232637287,-500.0,0.00010958,2]
[352678146,1739232637296,-500.0,0.00010958,2]
[352678147,1739232637306,-1005.42,0.00010958,2]
[352678148,1739232637316,-500.0,0.00010958,2]
[352678149,1739232637325,-500.0,0.00010958,2]
[352678150,1739232637335,-544.02,0.00010958,2]
[352678152,1739232637345,-873.83,0.00010958,2]
[352678153,1739232637354,-500.0,0.00010958,2]
[352678154,1739232637364,-500.0,0.00010958,2]
[352678155,1739232637374,-500.0,0.00010958,2]
[352678156,1739232637383,-533.93,0.00010958,2]
[352678157,1739232637393,-500.0,0.00010958,2]
[352678158,1739232637402,-500.0,0.00010958,2]
[352678159,1739232637412,-500.0,0.00010958,2]
[352678160,1739232637422,-569.18,0.00010958,2]
[352678161,1739232637431,-500.0,0.00010958,2]
[352678162,1739232637441,-636.82,0.00010958,2]
[352678163,1739232637451,-500.0,0.00010958,2]
[352678164,1739232637460,-500.0,0.00010958,2]
[352678165,1739232637470,-500.0,0.00010958,2]
[352678166,1739232637479,-500.0,0.00010958,2]
[352678167,1739232637490,-237.14384543,0.00010958,2]
[352678168,1739232637499,-500.0,0.00010958,2]
[352678169,1739232637509,-622.79,0.00010958,2]
[352678170,1739232637518,-241.82276636,0.00010958,2]
[352678171,1739232637527,-513.33,0.00010958,2]
[352678172,1739232637537,-500.0,0.00010958,2]
[352678173,1739232637547,-500.0,0.00010958,2]
[352678174,1739232637557,-539.89,0.00010958,2]
[352678175,1739232637566,-500.0,0.00010958,2]
[352678176,1739232637576,-500.0,0.00010958,2]
[352678177,1739232637585,-500.0,0.00010958,2]
[352678178,1739232637595,-665.36,0.00010958,2]
[352678179,1739232637604,-500.0,0.00010958,2]
[352678180,1739232637614,-500.0,0.00010958,2]
[352678181,1739232637624,-500.0,0.00010958,2]
[352678182,1739232637634,-500.0,0.00010958,2]
[352678183,1739232637643,-1135.41,0.00010958,2]
[352678184,1739232637653,-500.0,0.00010958,2]
[352678185,1739232637663,-798.94,0.00010958,2]
[352678186,1739232637672,-500.0,0.00010958,2]
[352678187,1739232637682,-735.5,0.00010958,2]
[352678188,1739232637692,-500.0,0.00010958,2]
[352678189,1739232637702,-648.58,0.00010958,2]
[352678190,1739232637711,-500.0,0.00010958,2]
[352678191,1739232637723,-500.0,0.00010958,2]
[352678192,1739232637732,-842.83,0.00010958,2]
[352678193,1739232637741,-679.18,0.00010958,2]
[352678194,1739232637750,-500.0,0.00010958,2]
[352678195,1739232637760,-500.0,0.00010958,2]
[352678196,1739232637770,-500.0,0.00010958,2]
[352678197,1739232637779,-500.0,0.00010958,2]
[352678198,1739232637788,-500.0,0.00010958,2]
[352678199,1739232637799,-500.0,0.00010958,2]
[352678200,1739232637807,-500.0,0.00010958,2]
[352678201,1739232637817,-742.01,0.00010958,2]
[352678202,1739232637826,-500.0,0.00010958,2]
[352678203,1739232637836,-500.0,0.00010958,2]
[352678204,1739232637845,-500.0,0.00010958,2]
[352678205,1739232637855,-1392.88,0.00010958,2]
[352678206,1739232637864,-500.0,0.00010958,2]
[352678207,1739232637873,-500.0,0.00010958,2]
[352678208,1739232637883,-902.93,0.00010958,2]
[352678209,1739232637893,-500.0,0.00010958,2]
[352678210,1739232637903,-500.0,0.00010958,2]
[352678211,1739232637912,-500.0,0.00010958,2]
[352678212,1739232637922,-500.0,0.00010958,2]
[352678213,1739232637932,-615.0,0.00010958,2]
[352678214,1739232637941,-500.0,0.00010958,2]
[352678215,1739232637952,-500.0,0.00010958,2]
[352678216,1739232637961,-500.0,0.00010958,2]
[352678217,1739232637970,-500.0,0.00010958,2]
[352678218,1739232637980,-822.72,0.00010958,2]
[352678219,1739232637991,-500.0,0.00010958,2]
[352678220,1739232638001,-570.40001974,0.00010958,2]
[352678221,1739232638011,-500.0,0.00010958,2]
[352678222,1739232638020,-522.51,0.00010958,2]
[352678223,1739232638030,-761.79,0.00010958,2]
[352678224,1739232638039,-594.48,0.00010958,2]
[352678225,1739232638049,-500.0,0.00010958,2]
[352678226,1739232638058,-1100.71,0.00010958,2]
[352678227,1739232638067,-500.0,0.00010958,2]
[352678228,1739232638076,-727.53,0.00010958,2]
[352678229,1739232638085,-500.0,0.00010958,2]
[352678230,1739232638094,-500.0,0.00010958,2]
[352678231,1739232638104,-871.37,0.00010958,2]
[352678232,1739232638113,-533.79,0.00010958,2]
[352678233,1739232638122,-188.66894562,0.00010958,2]
[352678234,1739232638131,-500.0,0.00010958,2]
[352678235,1739232638140,-500.0,0.00010958,2]
[352678236,1739232638150,-500.0,0.00010958,2]
[352678237,1739232638159,-500.0,0.00010958,2]
[352678238,1739232638168,-500.0,0.00010958,2]
[352678239,1739232638178,-500.0,0.00010958,2]
[352678240,1739232638188,-500.0,0.00010958,2]
[352678241,1739232638198,-500.0,0.00010958,2]
[352678242,1739232638208,-500.0,0.00010958,2]
[352678243,1739232638217,-500.0,0.00010958,2]
[352678244,1739232638227,-608.52,0.00010958,2]
[352678245,1739232638237,-500.0,0.00010958,2]
[352678246,1739232638248,-777.9,0.00010958,2]
[352678247,1739232638257,-500.0,0.00010958,2]
[352678248,1739232638267,-450.85,0.00010958,2]
[352678249,1739232638277,-500.0,0.00010958,2]
[352678250,1739232638286,-755.01,0.00010958,2]
[352678251,1739232638295,-916.87,0.00010958,2]
[352678252,1739232638306,-500.0,0.00010958,2]
[352678253,1739232638316,-500.0,0.00010958,2]
[352678254,1739232638326,-500.0,0.00010958,2]
[352678255,1739232638336,-500.0,0.00010958,2]
[352678256,1739232638346,-500.0,0.00010958,2]
[352678257,1739232638356,-500.0,0.00010958,2]
[352678258,1739232638367,-500.0,0.00010958,2]
[352678259,1739232638376,-500.0,0.00010958,2]
[352678260,1739232638386,-978.58,0.00010958,2]
[352678261,1739232638396,-547.35,0.00010958,2]
[352678262,1739232638406,-500.22458303,0.00010958,2]
[352678263,1739232638416,-500.0,0.00010958,2]
[352678264,1739232638425,-500.0,0.00010958,2]
[352678265,1739232638436,-500.0,0.00010958,2]
[352678267,1739232638445,-500.0,0.00010958,2]
[352678268,1739232638455,-500.0,0.00010958,2]
[352678269,1739232638464,-500.0,0.00010958,2]
[352678270,1739232638473,-500.0,0.00010958,2]
[352678272,1739232638482,-848.65,0.00010958,2]
[352678274,1739232638495,-500.0,0.00010958,2]
[352678276,1739232638504,-500.0,0.00010958,2]
[352678278,1739232638514,-500.0,0.00010958,2]
[352678280,1739232638523,-500.0,0.00010958,2]
[352678282,1739232638533,-500.0,0.00010958,2]
[352678284,1739232638543,-500.0,0.00010958,2]
[352678285,1739232638554,-526.83398816,0.00010958,2]
[352678286,1739232638564,-686.26,0.00010958,2]
[352678287,1739232638574,-873.69,0.00010958,2]
[352678288,1739232638583,-500.0,0.00010958,2]
[352678289,1739232638593,-500.0,0.00010958,2]
[352678290,1739232638603,-500.0,0.00010958,2]
[352678291,1739232638613,-500.0,0.00010958,2]
[352678292,1739232638623,-500.0,0.00010958,2]
[352678293,1739232638633,-363.69976894,0.00010958,2]
[352678294,1739232638642,-500.0,0.00010958,2]
[352678295,1739232638652,-500.0,0.00010958,2]
[352678296,1739232638661,-500.0,0.00010958,2]
[352678297,1739232638671,-500.0,0.00010958,2]
[352678298,1739232638681,-500.0,0.00010958,2]
[352678299,1739232638691,-639.58823242,0.00010958,2]
[352678300,1739232638701,-500.0,0.00010958,2]
[352678301,1739232638710,-500.0,0.00010958,2]
[352678302,1739232638721,-500.0,0.00010958,2]
[352678303,1739232638732,-500.0,0.00010958,2]
[352678304,1739232638744,-1029.37,0.00010958,2]
[352678305,1739232638754,-591.75,0.00010958,2]
[352678306,1739232638764,-500.0,0.00010958,2]
[352678307,1739232638773,-500.0,0.00010958,2]
[352678308,1739232638783,-500.0,0.00010958,2]
[352678309,1739232638792,-937.73,0.00010958,2]
[352678310,1739232638803,-500.0,0.00010958,2]
[352678311,1739232638812,-500.0,0.00010958,2]
[352678312,1739232638822,-264.2780309,0.00010958,2]
[352678313,1739232638831,-717.91,0.00010958,2]
[352678314,1739232638840,-500.0,0.00010958,2]
[352678315,1739232638850,-550.2635996,0.00010958,2]
[352678316,1739232638859,-556.18,0.00010958,2]
[352678317,1739232638868,-500.0,0.00010958,2]
[352678318,1739232638878,-500.0,0.00010958,2]
[352678319,1739232638888,-274.45926599,0.00010958,2]
[352678320,1739232638897,-500.0,0.00010958,2]
[352678321,1739232638906,-1246.62,0.00010958,2]
[352678322,1739232638916,-500.0,0.00010958,2]
[352678323,1739232638925,-500.0,0.00010958,2]
[352678324,1739232638935,-500.0,0.00010958,2]
[352678325,1739232638944,-500.0,0.00010958,2]
[352678326,1739232638953,-163.48331483,0.00010958,2]
[352678327,1739232638963,-699.08,0.00010958,2]
[352678328,1739232638972,-500.0,0.00010958,2]
[352678329,1739232638982,-500.0,0.00010958,2]
[352678330,1739232638993,-500.0,0.00010958,2]
[352678331,1739232639003,-885.24,0.00010958,2]
[352678332,1739232639012,-701.81,0.00010958,2]
[352678333,1739232639022,-500.0,0.00010958,2]
[352678334,1739232639032,-1055.35,0.00010958,2]
[352678335,1739232639041,-500.0,0.00010958,2]
[352678336,1739232639051,-500.0,0.00010958,2]
[352678337,1739232639060,-376.98727583,0.00010958,2]
[352678338,1739232639070,-500.0,0.00010958,2]
[352678339,1739232639080,-500.0,0.00010958,2]
[352678340,1739232639089,-500.0,0.00010958,2]
[352678341,1739232639099,-500.0,0.00010958,2]
[352678342,1739232639108,-500.0,0.00010958,2]
[352678343,1739232639118,-500.0,0.00010958,2]
[352678344,1739232639127,-500.0,0.00010958,2]
[352678345,1739232639136,-500.0,0.00010958,2]
[352678346,1739232639146,-391.07909848,0.00010958,2]
[352678347,1739232639155,-500.0,0.00010958,2]
[352678348,1739232639164,-570.58,0.00010958,2]
[352678349,1739232639173,-500.0,0.00010958,2]
[352678350,1739232639183,-571.76379161,0.00010958,2]
[352678351,1739232639193,-878.7,0.00010958,2]
[352678352,1739232639202,-500.0,0.00010958,2]
[352678353,1739232639211,-255.06,0.00010958,2]
[352678354,1739232639221,-500.0,0.00010958,2]
[352678355,1739232639230,-316.98,0.00010958,2]
[352678356,1739232639241,-500.0,0.00010958,2]
[352678357,1739232639250,-500.0,0.00010958,2]
[352678358,1739232639260,-500.0,0.00010958,2]
[352678359,1739232639269,-500.0,0.00010958,2]
[352678360,1739232639486,-602.82,0.00010958,2]
[352678361,1739232639498,-500.0,0.00010958,2]
[352678362,1739232639507,-716.51,0.00010958,2]
[352678363,1739232639517,-500.0,0.00010958,2]
[352678364,1739232639526,-500.0,0.00010958,2]
[352678365,1739232639536,-500.0,0.00010958,2]
[352678366,1739232639545,-444.46075581,0.00010958,2]
[352678367,1739232639555,-500.0,0.00010958,2]
[352678368,1739232639565,-638.4,0.00010958,2]
[352678369,1739232639575,-500.0,0.00010958,2]
[352678370,1739232639584,-517.51503679,0.00010958,2]
[352678371,1739232639594,-500.0,0.00010958,2]
[352678372,1739232639603,-356.15,0.00010958,2]
[352678373,1739232639613,-500.0,0.00010958,2]
[352678374,1739232639623,-856.23,0.00010958,2]
[352678375,1739232639632,-500.0,0.00010958,2]
[352678376,1739232639641,-500.0,0.00010958,2]
[352678377,1739232639651,-500.0,0.00010958,2]
[352678378,1739232639661,-500.0,0.00010958,2]
[352678379,1739232639671,-697.66,0.00010958,2]
[352678380,1739232639680,-500.0,0.00010958,2]
[352678381,1739232639690,-500.0,0.00010958,2]
[352678382,1739232639699,-500.0,0.00010958,2]
[352678383,1739232639708,-890.74,0.00010958,2]
[352678384,1739232639717,-500.0,0.00010958,2]
[352678385,1739232639731,-500.0,0.00010958,2]
[352678386,1739232639742,-500.0,0.00010958,2]
[352678387,1739232639751,-500.0,0.00010958,2]
[352678388,1739232639761,-500.0,0.00010958,2]
[352678389,1739232639772,-500.0,0.00010958,2]
[352678390,1739232639781,-500.0,0.00010958,2]
[352678391,1739232639790,-989.18,0.00010958,2]
[352678392,1739232639800,-500.0,0.00010958,2]
[352678393,1739232639812,-500.0,0.00010958,2]
[352678394,1739232639822,-1046.48,0.00010958,2]
[352678395,1739232639831,-174.44892097,0.00010958,2]
[352678396,1739232639841,-500.0,0.00010958,2]
[352678397,1739232639850,-500.0,0.00010958,2]
[352678398,1739232639859,-500.0,0.00010958,2]
[352678399,1739232639869,-644.19,0.00010958,2]
[352678400,1739232639879,-500.0,0.00010958,2]
[352678401,1739232639888,-939.62,0.00010958,2]
[352678402,1739232639899,-783.98,0.00010958,2]
[352678403,1739232639909,-819.19,0.00010958,2]
[352678404,1739232639919,-2676.55,0.00010958,2]
[352678405,1739232639928,-500.0,0.00010958,2]
[352678406,1739232639937,-242.08921763,0.00010958,2]
[352678407,1739232639947,-1114.01,0.00010958,2]
[352678408,1739232639956,-500.0,0.00010958,2]
[352678409,1739232639966,-2760.75,0.00010958,2]
[352678410,1739232639975,-271.8,0.00010958,2]
[352678411,1739232639985,-589.12,0.00010958,2]
[352678412,1739232639995,-500.0,0.00010958,2]
[352678413,1739232640006,-500.0,0.00010958,2]
[352678414,1739232640016,-500.0,0.00010958,2]
[352678415,1739232640025,-382.16,0.00010958,2]
[352678416,1739232640034,-500.0,0.00010958,2]
[352678417,1739232640044,-1010.99,0.00010958,2]
[352678418,1739232640054,-1306.69,0.00010958,2]
[352678419,1739232640064,-1098.31,0.00010958,2]
[352678420,1739232640073,-968.86,0.00010958,2]
[352678421,1739232640083,-849.55,0.00010958,2]
[352678422,1739232640093,-1835.23,0.00010958,2]
[352678423,1739232640102,-500.0,0.00010958,2]
[352678424,1739232640111,-942.36,0.00010958,2]
[352678425,1739232640121,-500.0,0.00010958,2]
[352678426,1739232640131,-500.0,0.00010958,2]
[352678427,1739232640141,-500.0,0.00010958,2]
[352678428,1739232640151,-1227.15,0.00010958,2]
[352678429,1739232640160,-1141.86,0.00010958,2]
[352678430,1739232640170,-581.82,0.00010958,2]
[352678431,1739232640179,-500.0,0.00010958,2]
[352678432,1739232640188,-561.0,0.00010958,2]
[352678433,1739232640198,-823.248224,0.00010958,2]
[352678434,1739232640208,-1001.49,0.00010958,2]
[352678435,1739232640217,-1897.43,0.00010958,2]
[352678436,1739232640228,-953.57,0.00010958,2]
[352678437,1739232640237,-602.59,0.00010958,2]
[352678438,1739232640248,-1634.46,0.00010958,2]
[352678439,1739232640257,-534.18,0.00010958,2]
[352678440,1739232640266,-500.0,0.00010958,2]
[352678441,1739232640276,-998.82,0.00010958,2]
[352678442,1739232640286,-500.0,0.00010958,2]
[352678443,1739232640296,-161.595445,0.00010958,2]
[352678444,1739232640305,-706.78,0.00010958,2]
[352678445,1739232640315,-981.84352744,0.00010958,2]
[352678446,1739232640342,-260.0,0.00010958,2]
[352678447,1739232640355,-511.04440164,0.00010958,2]
[352678448,1739232640367,-21.81207092,0.00010958,2]
[352678449,1739232640376,-500.0,0.00010958,2]
[352678450,1739232640386,-500.0,0.00010958,2]
[352678451,1739232640396,-154.81807018,0.00010958,2]
[352678452,1739232640405,-808.04,0.00010958,2]
[352678453,1739232640415,-500.0,0.00010958,2]
[352678454,1739232640425,-839.01,0.00010958,2]
[352678455,1739232640434,-228.26,0.00010958,2]
[352678456,1739232640444,-683.6,0.00010958,2]
[352678457,1739232640453,-500.0,0.00010958,2]
[352678458,1739232640462,-731.52,0.00010958,2]
[352678459,1739232640472,-1065.28,0.00010958,2]
[352678460,1739232640482,-804.13,0.00010958,2]
[352678461,1739232640492,-969.57,0.00010958,2]
[352678462,1739232640501,-878.97,0.00010958,2]
[352678463,1739232640511,-500.0,0.00010958,2]
[352678464,1739232640520,-500.0,0.00010958,2]
[352678465,1739232640529,-5540.31,0.00010958,2]
[352678466,1739232640542,-1171.22,0.00010958,2]
[352678467,1739232640551,-500.0,0.00010958,2]
[352678468,1739232640561,-800.78,0.00010958,2]
[352678469,1739232640571,-531.04,0.00010958,2]
[352678471,1739232640580,-500.0,0.00010958,2]
[352678472,1739232640590,-500.0,0.00010958,2]
[352678474,1739232640599,-500.0,0.00010958,2]
[352678475,1739232640608,-1876.31,0.00010958,2]
[352678476,1739232640618,-967.97,0.00010958,2]
[352678477,1739232640627,-681.21,0.00010958,2]
[352678478,1739232640637,-500.0,0.00010958,2]
[352678479,1739232640647,-917.18,0.00010958,2]
[352678480,1739232640657,-777.43,0.00010958,2]
[352678481,1739232640667,-971.67,0.00010958,2]
[352678482,1739232640677,-780.14,0.00010958,2]
[352678483,1739232640687,-804.027024,0.00010958,2]
[352678484,1739232640696,-906.37,0.00010958,2]
[352678485,1739232640706,-1227.34,0.00010958,2]
[352678486,1739232640716,-644.83,0.00010958,2]
[352678487,1739232640729,-500.0,0.00010958,2]
[352678488,1739232640739,-500.0,0.00010958,2]
[352678489,1739232640748,-500.0,0.00010958,2]
[352678490,1739232640764,-511.19,0.00010958,2]
[352678491,1739232640774,-1456.13,0.00010958,2]
[352678492,1739232640784,-500.0,0.00010958,2]
[352678493,1739232640794,-500.0,0.00010958,2]
[352678494,1739232640804,-634.95,0.00010958,2]
[352678495,1739232640814,-500.0,0.00010958,2]
[352678496,1739232640825,-500.0,0.00010958,2]
[352678497,1739232640835,-1081.61,0.00010958,2]
[352678498,1739232640845,-745.46,0.00010958,2]
[352678499,1739232640855,-500.0,0.00010958,2]
[352678500,1739232640864,-924.74,0.00010958,2]
[352678501,1739232640873,-500.0,0.00010958,2]
[352678502,1739232640883,-906.08,0.00010958,2]
[352678503,1739232640893,-500.0,0.00010958,2]
[352678504,1739232640903,-1323.16,0.00010958,2]
[352678505,1739232640913,-601.3,0.00010958,2]
[352678506,1739232640924,-552.79,0.00010958,2]
[352678507,1739232640934,-960.7,0.00010958,2]
[352678508,1739232640943,-500.0,0.00010958,2]
[352678509,1739232640952,-712.28,0.00010958,2]